bitfinex-derivatives/quotes_ETHF0:USTF0_20250803
["timestamp","ask_amount","ask_price","bid_price","bid_amount"]
[1754224714795,3.8487,3485.6,3485.5,2.2662]
[1754224714796,4.1611,3485.6,3485.5,2.2662]
[1754224715299,5.0917,3485.6,3485.5,2.2662]
[1754224715698,5.5876,3485.6,3485.5,2.2662]
[1754224716598,5.5876,3485.6,3485.5,1.4079]
[1754224717193,5.5876,3485.6,3485.5,2.2662]
[1754224717492,1.8839,3485.6,3485.5,2.2662]
[1754224717995,0.9533,3485.6,3485.5,2.2662]
[1754224718500,2.3798,3485.9,3485.8,0.9193]
[1754224718699,3.27851945,3485.9,3485.8,2.2662]
[1754224719798,1.21131945,3485.9,3485.8,2.2662]
[1754224720099,3.2078,3486.0,3485.9,2.2662]
[1754224720296,5.99049278,3486.0,3485.9,2.2662]
[1754224720497,5.05989278,3486.0,3485.9,2.2662]
[1754224720800,3.8487,3486.0,3485.9,2.2662]
[1754224722293,1.8839,3486.0,3485.9,2.2662]
[1754224722499,2.3798,3486.0,3485.9,0.3206]
[1754224722700,2.3798,3486.0,3485.9,1.1105]
[1754224723001,2.3798,3486.0,3485.9,2.2662]
[1754224729012,2.3798,3486.0,3485.9,0.6219]
[1754224729226,2.3798,3486.0,3485.9,1.0774]
[1754224729410,2.3798,3486.0,3485.9,2.2458]
[1754224734017,1.52707,3486.0,3485.9,19.689]
[1754224734321,2.3706,3485.6,3485.5,1.0872]
[1754224734617,2.3706,3485.6,3485.5,20.3207]
[1754224735518,2.3706,3485.6,3485.5,19.689]
[1754224735714,1.4252,3485.5,3485.4,19.688]
[1754224735914,0.9454,3485.5,3485.4,19.688]
[1754224736114,2.3706,3485.5,3485.4,19.688]
[1754224737716,2.3706,3485.5,3485.4,20.3197]
[1754224738722,0.9454,3485.2,3485.1,3.2078]
[1754224739019,2.3706,3485.2,3485.1,20.3207]
[1754224739214,2.3706,3485.2,3485.1,20.7762]
[1754224739520,2.3706,3485.2,3485.1,21.1664]
[1754224739717,2.3706,3485.2,3485.1,0.6317]
[1754224739923,1.8906,3484.8,3484.7,3.2078]
[1754224740121,2.3706,3484.8,3484.7,25.1514]
[1754224742916,3.2078,3485.2,3484.6,0.3116]
[1754224743219,0.9454,3485.1,3485.0,2.2556]
[1754224744023,1.4217,3485.1,3485.0,2.2556]
[1754224744228,1.9017,3485.1,3485.0,2.2556]
[1754224744921,2.3706,3485.1,3485.0,2.2556]
[1754224746427,1.9017,3485.1,3485.0,2.2556]
[1754224747034,2.3706,3485.1,3485.0,2.2556]
[1754224749126,0.6355,3485.5,3485.4,0.6279]
[1754224749323,0.6355,3485.5,3485.4,2.2556]
[1754224749722,1.1155,3485.5,3485.4,2.2556]
[1754224749922,0.6355,3485.6,3485.5,2.2556]
[1754224750118,3.2078,3486.0,3485.5,2.2556]
[1754224750432,2.3706,3485.9,3485.8,1.3307]
[1754224750623,2.3706,3485.9,3485.8,2.2556]
[1754224751624,0.4763,3485.7,3485.3,0.4555]
[1754224751819,2.3706,3485.5,3485.4,20.3217]
[1754224752020,2.3706,3485.5,3485.4,1.4784]
[1754224752224,2.3706,3485.5,3485.4,19.69]
[1754224752425,2.3706,3485.5,3485.4,20.0016]
[1754224752731,2.3706,3485.5,3485.4,21.6378]
[1754224752926,2.3706,3485.5,3485.4,21.9456]
[1754224753326,0.9489,3486.0,3485.5,0.57384]
[1754224753533,2.3706,3486.0,3485.9,2.2556]
[1754224753722,3.26904431,3486.0,3485.9,2.2556]
[1754224753931,2.80014431,3486.0,3485.9,2.2556]
[1754224754230,3.25704431,3486.0,3485.9,2.2556]
[1754224754535,2.3586,3486.0,3485.9,2.2556]
[1754224755230,1.8747,3486.3,3486.2,1.3928]
[1754224755535,1.8747,3486.3,3486.2,2.2622]
[1754224755536,3.22256382,3486.3,3486.2,2.2622]
[1754224755830,0.57373,3486.2,3485.8,0.4764]
[1754224756026,2.324,3485.9,3485.8,2.2622]
[1754224756227,2.324,3485.9,3485.8,21.9492]
[1754224756724,1.8671,3485.9,3485.8,21.9492]
[1754224758634,1.3796,3486.2,3485.9,0.57378]
[1754224758835,2.324,3486.2,3486.1,2.2622]
[1754224761127,1.8671,3486.2,3486.1,2.2622]
[1754224761634,1.5489,3486.2,3486.1,2.2622]
[1754224761826,0.4493,3486.4,3486.1,21.18664]
[1754224762135,1.8671,3486.3,3486.2,2.2622]
[1754224762334,2.324,3486.3,3486.2,2.2622]
[1754224766837,1.03054,3486.8,3486.3,0.57371]
[1754224767134,1.8506,3486.6,3486.5,0.9269]
[1754224767334,3.22238924,3486.6,3486.5,2.2622]
[1754224767736,2.324,3486.6,3486.5,2.2622]
[1754224768438,4.1305,3486.9,3486.5,1.50057]
[1754224768631,4.1522,3486.9,3486.8,0.9269]
[1754224768937,4.6091,3486.9,3486.8,2.2622]
[1754224769233,0.9227,3486.3,3486.1,0.9423]
[1754224769433,1.4178,3486.2,3486.0,3.78156]
[1754224769630,2.324,3486.1,3486.0,5.71876]
[1754224769830,2.324,3486.1,3486.0,25.72576]
[1754224770038,2.324,3486.1,3486.0,3.8097]
[1754224770431,2.324,3486.1,3486.0,23.4917]
[1754224770736,2.324,3486.1,3486.0,21.6192]
[1754224771032,2.324,3486.1,3486.0,1.4713]
[1754224771232,0.3182,3485.9,3485.8,0.7857]
[1754224771537,2.324,3485.9,3485.8,20.2839]
[1754224772234,0.9444,3485.6,3485.5,1.0678]
[1754224772434,2.324,3485.6,3485.5,0.7585]
[1754224772639,2.324,3485.6,3485.2,3.2078]
[1754224772640,2.324,3485.3,3485.2,3.8934]
[1754224772936,2.324,3485.3,3485.2,25.151]
[1754224774130,0.4493,3486.0,3485.8,0.2926]
[1754224774440,2.324,3485.9,3485.8,2.2622]
[1754224774737,2.324,3485.9,3485.8,0.6019]
[1754224774927,1.8506,3485.4,3485.3,1.9372]
[1754224775124,2.324,3485.4,3485.3,1.0783]
[1754224775329,2.324,3485.4,3485.3,20.7593]
[1754224775530,2.89787,3485.4,3485.0,0.4764]
[1754224775729,0.9444,3485.1,3485.0,2.2622]
[1754224775928,2.324,3485.1,3485.0,21.9432]
[1754224777134,2.324,3485.1,3485.0,2.2622]
[1754224777335,2.324,3485.1,3485.0,20.2839]
[1754224777933,2.324,3485.1,3485.0,0.6019]
[1754224778238,2.324,3485.0,3484.9,19.682]
[1754224778845,2.324,3485.0,3484.9,20.7603]
[1754224779038,2.324,3485.0,3484.9,21.9442]
[1754224781239,1.0878,3485.0,3484.9,21.9442]
[1754224781546,4.6091,3485.3,3485.2,2.2622]
[1754224781842,5.0825,3485.3,3485.2,2.2622]
[1754224782041,3.2078,3485.3,3485.2,21.9452]
[1754224782736,0.4569,3485.5,3485.2,21.9452]
[1754224782942,1.3937,3485.3,3485.2,21.4793]
[1754224783141,2.324,3485.3,3485.2,21.9452]
[1754224784441,1.8671,3485.3,3485.2,21.9452]
[1754224785143,1.7976,3485.5,3485.4,0.9087]
[1754224785347,1.7976,3485.5,3485.4,21.8852]
[1754224785646,2.2588,3485.5,3485.4,21.8852]
[1754224788545,0.9007,3485.5,3485.4,21.8852]
[1754224788842,1.3619,3485.8,3485.7,2.2022]
[1754224789254,1.3619,3485.8,3485.7,21.8842]
[1754224789447,2.2588,3485.8,3485.7,21.8842]
[1754224790751,2.2588,3485.8,3485.7,21.415]
[1754224791151,2.2588,3485.8,3485.7,21.8842]
[1754224791951,1.5042,3485.8,3485.7,21.8842]
[1754224792152,0.6073,3485.8,3485.7,21.8842]
[1754224793557,1.5042,3485.8,3485.7,21.8842]
[1754224793750,1.7976,3485.8,3485.7,21.8842]
[1754224794555,2.2588,3485.8,3485.7,21.8842]
[1754224795047,0.57374,3486.2,3485.8,0.57379]
[1754224795359,2.2588,3486.2,3486.1,1.733]
[1754224795555,2.2588,3486.2,3486.1,2.2022]
[1754224796054,0.6073,3486.2,3486.1,21.8822]
[1754224796250,1.7976,3486.4,3486.3,0.9087]
[1754224796459,2.2588,3486.4,3486.3,21.8822]
[1754224797960,2.2588,3486.4,3486.3,20.7066]
[1754224798460,2.2588,3486.4,3486.3,21.0969]
[1754224798657,1.8018,3486.0,3485.6,0.434]
[1754224798864,0.9007,3485.7,3485.6,1.3779]
[1754224799069,2.2588,3485.7,3485.6,21.0559]
[1754224799460,2.2588,3485.7,3485.6,21.8802]
[1754224799661,2.2588,3485.7,3485.6,2.2022]
[1754224800063,2.2588,3485.7,3485.6,21.8802]
[1754224800368,2.2588,3485.5,3485.4,3.4973]
[1754224800562,2.2588,3485.5,3485.4,23.4784]
[1754224800762,2.2588,3485.5,3485.4,24.3027]
[1754224801167,2.2588,3485.5,3485.4,24.7719]
[1754224801378,2.2588,3485.5,3485.4,25.088]
[1754224802363,1.7976,3485.5,3485.4,25.088]
[1754224802861,0.4612,3485.7,3485.5,0.57384]
[1754224803067,0.9007,3486.2,3486.1,1.3427]
[1754224803267,1.80138979,3486.2,3486.1,2.2022]
[1754224803661,2.2588,3486.2,3486.1,2.2022]
[1754224804066,1.8018,3485.9,3485.8,19.677]
[1754224804267,2.2588,3485.9,3485.8,19.677]
[1754224805269,0.9007,3485.6,3485.5,19.677]
[1754224805475,2.2588,3485.5,3485.4,3.4973]
[1754224805674,1.3619,3485.5,3485.4,23.4774]
[1754224805870,2.2588,3485.5,3485.4,23.4774]
[1754224806069,2.2588,3485.5,3485.4,23.9114]
[1754224806471,2.2588,3485.5,3485.4,23.4774]
[1754224808471,2.2588,3485.5,3485.4,23.9114]
[1754224808876,2.2588,3485.5,3485.4,24.3017]
[1754224809979,2.2588,3485.5,3485.4,24.7709]
[1754224811278,2.2588,3485.5,3485.4,25.087]
[1754224812782,2.2588,3485.5,3485.4,22.8848]
[1754224813383,2.2588,3485.5,3485.4,19.677]
[1754224813884,2.2323,3485.1,3485.0,0.5768]
[1754224814183,2.2323,3485.1,3485.0,20.2528]
[1754224814371,2.2323,3485.1,3485.0,21.5233]
[1754224814576,2.2323,3485.1,3485.0,21.8264]
[1754224815275,2.2323,3485.1,3485.0,20.2528]
[1754224817382,2.2323,3485.1,3485.0,21.8264]
[1754224817580,1.3284,3484.8,3484.7,21.0119]
[1754224817780,2.2323,3484.8,3484.7,21.8274]
[1754224818282,2.2323,3484.8,3484.7,20.2538]
[1754224818783,2.2323,3484.8,3484.7,20.6772]
[1754224819377,0.57393,3485.0,3484.7,20.6772]
[1754224819577,0.3254,3484.9,3484.8,2.1504]
[1754224819877,0.905,3484.9,3484.8,2.1504]
[1754224820184,2.50706,3484.8,3484.7,19.677]
[1754224820384,2.80626,3484.8,3484.7,19.677]
[1754224820585,2.80626,3484.8,3484.7,20.2538]
[1754224820788,2.80626,3484.8,3484.7,20.6772]
[1754224821083,2.2323,3484.8,3484.7,21.0693]
[1754224821278,2.2323,3484.8,3484.7,21.5243]
[1754224822881,2.2323,3484.8,3484.7,21.8274]
[1754224823386,1.8033,3484.8,3484.7,21.8274]
[1754224824390,2.2323,3484.8,3484.7,21.8274]
[1754224829090,0.8003,3484.8,3484.7,21.8274]
[1754224829388,1.02556395,3485.7,3484.7,21.8274]
[1754224829389,3.2078,3485.7,3485.6,0.8799]
[1754224829585,4.32827076,3485.7,3485.6,21.4353]
[1754224829784,5.91256766,3485.7,3485.6,21.8274]
[1754224830683,5.58716766,3485.7,3485.6,21.8274]
[1754224830888,4.10926766,3485.7,3485.6,21.8274]
[1754224831792,4.10926766,3485.7,3485.6,22.05542747]
[1754224831986,0.50936766,3485.7,3485.6,22.05542747]
[1754224832386,0.50936766,3485.7,3485.6,25.26322747]
[1754224832793,0.50936766,3485.7,3485.6,25.0352]
[1754224834094,0.50936766,3485.7,3485.6,25.26908959]
[1754224834493,0.50936766,3485.7,3485.6,25.0352]
[1754224836193,2.74166766,3485.7,3485.6,3.4905]
[1754224836392,2.2323,3485.7,3485.6,23.4576]
[1754224836698,2.2323,3485.7,3485.6,23.881]
[1754224837093,2.2323,3485.7,3485.6,21.1282]
[1754224837295,1.5041,3486.0,3485.9,1.4552]
[1754224837493,1.3799,3486.0,3485.9,21.1272]
[1754224837802,2.2323,3485.5,3485.4,1.4552]
[1754224837997,2.2323,3485.5,3485.4,21.1272]
[1754224839094,1.02556395,3486.0,3485.5,0.57384]
[1754224839302,0.2804,3486.0,3485.9,1.4552]
[1754224839503,0.2804,3486.0,3485.9,21.1272]
[1754224839792,1.0807,3486.0,3485.9,21.1272]
[1754224839995,1.8033,3486.0,3485.9,21.1272]
[1754224840202,2.2323,3486.0,3485.9,21.1272]
[1754224841101,0.3254,3486.0,3485.9,21.1272]
[1754224841394,0.4749,3486.3,3486.0,0.57376]
[1754224841594,0.4749,3486.3,3486.2,1.4552]
[1754224841595,2.2323,3486.3,3486.2,1.4552]
[1754224845502,0.905,3486.3,3485.9,0.4503]
[1754224845706,1.7757,3486.0,3485.8,1.01709]
[1754224845901,2.2179,3485.9,3485.8,1.61989]
[1754224846103,2.2179,3485.9,3485.8,2.07019]
[1754224846399,2.2179,3485.9,3485.8,1.62689]
[1754224846595,2.2179,3485.9,3485.8,0.3021]
[1754224846799,2.2179,3485.9,3485.8,19.669]
[1754224847205,2.2179,3485.9,3485.8,20.2718]
[1754224847406,2.2179,3485.9,3485.8,20.7221]
[1754224848094,2.2179,3485.9,3485.8,1.0531]
[1754224848303,2.2179,3485.9,3485.8,20.7221]
[1754224849602,2.2179,3485.9,3485.8,21.1654]
[1754224855806,2.2179,3485.9,3485.8,21.73919]
[1754224856107,0.3159,3485.9,3485.8,21.73919]
[1754224856306,0.4473,3486.1,3486.0,0.3021]
[1754224856307,1.1836,3486.1,3486.0,0.3021]
[1754224856610,1.4995,3486.1,3486.0,20.2698]
[1754224857003,1.4995,3486.1,3486.0,21.1634]
[1754224857408,1.934,3486.1,3486.0,21.1634]
[1754224857608,2.2179,3486.1,3486.0,21.1634]
[1754224860215,2.2179,3486.4,3486.3,1.4964]
[1754224860409,3.2078,3486.9,3486.8,0.87433]
[1754224860615,3.2078,3486.9,3486.8,21.73603]
[1754224860806,4.7073,3486.9,3486.8,21.1624]
[1754224861411,3.2078,3486.9,3486.8,21.1624]
[1754224861613,3.2078,3487.4,3487.3,0.6028]
[1754224861812,3.42730557,3487.4,3487.3,21.1624]
[1754224862409,0.21950557,3487.4,3487.3,21.1624]
[1754224862611,0.61,3487.4,3487.3,20.2688]
[1754224862814,2.2179,3487.4,3487.2,3.2078]
[1754224863015,2.2179,3487.4,3486.9,0.5736]
[1754224863016,2.2179,3487.4,3487.3,19.666]
[1754224865315,2.2179,3487.4,3487.3,20.2688]
[1754224867021,2.2179,3487.4,3487.3,20.7191]
[1754224867219,2.2179,3487.4,3487.3,21.1624]
[1754224871822,2.2179,3486.9,3486.8,1.4964]
[1754224872022,2.2179,3486.9,3486.8,21.1564]
[1754224872725,1.7834,3486.9,3486.8,21.1564]
[1754224873626,1.7834,3486.9,3486.8,24.3642]
[1754224873818,1.3361,3486.9,3486.8,24.3642]
[1754224874014,1.697,3487.2,3487.1,1.4474]
[1754224874219,2.1439,3487.2,3487.1,21.1064]
[1754224876725,1.0179,3487.2,3487.1,21.1064]
[1754224877827,1.4344,3487.2,3487.1,21.1064]
[1754224878032,2.1577,3487.2,3487.1,21.1064]
[1754224879223,0.846,3487.2,3486.8,3.2078]
[1754224879432,1.2625,3486.9,3486.8,1.4474]
[1754224879729,2.1577,3486.9,3486.8,24.3122]
[1754224883335,1.7108,3487.3,3487.2,1.4474]
[1754224883533,1.7108,3487.3,3487.2,21.1034]
[1754224883827,2.1577,3487.3,3487.2,21.1034]
[1754224885331,0.7233,3487.3,3487.2,21.1034]
[1754224885528,2.1577,3487.4,3487.3,1.4474]
[1754224885727,1.2943,3487.4,3487.3,21.1034]
[1754224886233,2.1577,3487.4,3487.3,21.1034]
[1754224889134,0.571,3487.4,3487.3,21.1034]
[1754224889338,0.2966,3487.4,3487.3,21.1034]
[1754224889533,1.19885006,3487.4,3487.3,21.1034]
[1754224890445,0.2966,3487.4,3487.3,21.1034]
[1754224890833,3.2078,3487.9,3487.5,1.4474]
[1754224891147,0.2966,3487.7,3487.6,21.6749]
[1754224891345,1.19888591,3487.7,3487.6,21.6739]
[1754224891845,0.90228591,3487.7,3487.6,21.6739]
[1754224892146,1.64578591,3487.7,3487.6,21.6739]
[1754224892644,1.16,3487.7,3487.6,21.6739]
[1754224892846,1.4344,3487.7,3487.6,21.1004]
[1754224893549,4.0538,3487.9,3487.8,0.5805]
[1754224893747,4.95591643,3487.9,3487.8,21.1004]
[1754224893952,5.81931643,3487.9,3487.8,21.1004]
[1754224894243,5.3655,3487.9,3487.8,21.1004]
[1754224894450,5.3655,3487.9,3487.8,20.2335]
[1754224894647,5.3655,3487.9,3487.8,21.1004]
[1754224894946,5.3655,3487.9,3487.8,0.5805]
[1754224895146,1.2943,3487.3,3487.2,3.7883]
[1754224895444,2.1577,3487.3,3487.2,24.3062]
[1754224896041,2.1577,3487.3,3487.2,23.8642]
[1754224896443,2.1577,3487.3,3487.2,24.3062]
[1754224905350,1.4344,3487.3,3487.2,24.3062]
[1754224907950,0.2966,3487.3,3487.2,24.3062]
[1754224908555,1.1712,3487.3,3487.2,24.3062]
[1754224908951,2.1768,3487.3,3487.2,24.3062]
[1754224909247,2.1768,3487.3,3487.2,22.8548]
[1754224910043,2.1768,3487.3,3487.2,3.2078]
[1754224910248,2.1834,3486.9,3486.8,5.20493]
[1754224910454,2.1834,3486.9,3486.8,24.85093]
[1754224913053,0.8634,3487.2,3487.1,0.57357]
[1754224913257,2.1834,3487.2,3487.1,21.64307]
[1754224913456,0.8634,3487.6,3487.3,0.57354]
[1754224913658,0.5949,3487.4,3487.3,1.71904]
[1754224913956,1.0383,3487.4,3487.3,21.64304]
[1754224914158,1.4695,3487.4,3487.3,21.64304]
[1754224914455,1.0383,3487.4,3487.3,21.64304]
[1754224915758,0.7354,3487.6,3487.3,20.78174]
[1754224916056,0.8746,3487.5,3487.4,1.4235]
[1754224916257,1.7512,3487.5,3487.4,1.4235]
[1754224916556,2.1834,3487.5,3487.4,1.4235]
[1754224919958,1.3088,3487.5,3487.4,1.4235]
[1754224920157,1.32,3487.5,3487.4,1.4235]
[1754224920354,0.3032,3487.5,3487.4,1.4235]
[1754224920755,0.7466,3487.5,3487.4,1.4235]
[1754224921658,2.1834,3487.5,3487.4,1.4235]
[1754224922356,2.1834,3487.5,3487.4,21.0665]
[1754224922755,2.1834,3487.5,3487.4,0.7185]
[1754224922958,2.1834,3487.3,3487.2,3.6483]
[1754224923159,2.1834,3487.3,3487.2,23.2903]
[1754224923855,1.3088,3487.3,3486.8,3.6483]
[1754224924063,2.1834,3487.0,3486.9,20.6447]
[1754224924357,2.1834,3487.0,3486.9,21.0655]
[1754224924863,2.1834,3487.0,3486.9,20.6447]
[1754224926157,2.1834,3487.0,3486.9,21.0655]
[1754224927460,2.1834,3487.0,3486.9,1.4235]
[1754224927662,2.1834,3487.0,3486.9,21.0645]
[1754224929058,0.57352,3487.5,3486.9,20.5023]
[1754224929259,2.1834,3487.1,3487.0,1.9971]
[1754224929462,2.1834,3487.1,3487.0,21.6381]
[1754224929962,2.1834,3487.1,3486.8,3.2078]
[1754224930163,2.1834,3487.0,3486.9,20.21461]
[1754224930463,2.1834,3487.0,3486.9,21.63811]
[1754224934568,1.7357,3487.3,3487.2,1.13576]
[1754224934764,2.1518,3487.3,3487.2,20.77576]
[1754224935261,2.1518,3487.3,3487.2,21.63146]
[1754224937357,2.1518,3487.3,3487.2,24.83926]
[1754224938270,1.7357,3487.3,3487.2,24.83926]
[1754224938665,2.1518,3487.3,3487.2,24.83926]
[1754224941067,3.2078,3487.8,3487.2,22.8478]
[1754224941266,3.05493413,3487.7,3487.6,1.9914]
[1754224941467,3.05493413,3487.7,3487.6,21.6294]
[1754224942573,2.1518,3487.7,3487.6,21.6294]
[1754224944674,3.2078,3488.0,3487.6,21.6294]
[1754224944978,2.1518,3487.8,3487.7,1.4179]
[1754224945275,3.05499713,3487.8,3487.7,1.4179]
[1754224947278,1.4567,3487.8,3487.7,1.4179]
[1754224948176,1.8728,3487.8,3487.7,1.4179]
[1754224948674,1.4567,3487.8,3487.7,1.4179]
[1754224948875,2.1518,3487.8,3487.7,1.4179]
[1754224950681,1.2751,3488.3,3487.7,0.5622]
[1754224950979,1.3267,3488.3,3488.2,1.4179]
[1754224951173,2.22991825,3488.3,3488.2,20.6127]
[1754224951368,0.2743,3488.1,3487.6,3.2078]
[1754224951578,0.8767,3487.8,3487.7,21.18618]
[1754224951775,0.2743,3487.3,3487.2,3.2078]
[1754224951978,2.1518,3487.3,3487.2,24.83126]
[1754224952174,2.1518,3487.6,3487.5,1.99141]
[1754224952476,2.1518,3487.6,3487.5,21.62341]
[1754224953178,2.1518,3487.6,3487.5,19.632]
[1754224954181,1.7018,3487.3,3487.2,3.4969]
[1754224954374,2.1518,3487.3,3487.2,22.8388]
[1754224955676,2.1518,3487.3,3487.2,23.5464]
[1754224955975,2.1518,3487.3,3487.2,23.8195]
[1754224957881,2.1518,3487.3,3487.2,23.401]
[1754224958778,2.1518,3487.3,3487.2,23.8195]
[1754224958983,0.5977,3487.3,3487.2,24.2567]
[1754224959183,1.0477,3487.3,3487.2,24.2567]
[1754224959381,1.2928,3487.6,3487.5,0.5622]
[1754224959581,1.2928,3487.6,3487.5,21.0479]
[1754224959981,2.1518,3487.6,3487.5,21.0479]
[1754224961887,0.8767,3487.7,3487.6,1.9914]
[1754224962186,2.1518,3487.7,3487.6,21.6204]
[1754224963476,2.1518,3487.7,3487.6,0.5735]
[1754224963682,2.1308,3487.7,3487.6,19.628]
[1754224964582,2.1308,3487.7,3487.6,20.6035]
[1754224966088,2.1308,3487.7,3487.6,21.0332]
[1754224967085,2.1308,3487.7,3487.6,19.628]
[1754224967588,0.8519,3487.5,3487.4,19.627]
[1754224967790,1.6333,3487.5,3487.4,19.627]
[1754224967984,1.42543,3487.5,3487.4,19.627]
[1754224968192,0.8519,3487.5,3487.4,19.627]
[1754224968395,0.8519,3487.5,3487.4,19.8973]
[1754224968581,0.8519,3487.3,3487.2,4.613]
[1754224968780,2.106,3487.3,3487.2,24.24]
[1754224970991,2.106,3487.9,3487.8,0.5542]
[1754224971294,0.8519,3487.7,3487.6,20.6099]
[1754224971495,3.00992587,3487.7,3487.6,20.1802]
[1754224972502,3.00992587,3487.7,3487.6,20.6015]
[1754224972995,3.00992587,3487.7,3487.6,21.0312]
[1754224973993,3.00992587,3487.7,3487.6,20.1802]
[1754224974698,3.00992587,3487.7,3487.6,20.6015]
[1754224975503,3.00992587,3487.7,3487.6,21.0312]
[1754224975698,1.1789,3488.0,3487.6,21.60469]
[1754224975900,1.4044,3487.8,3487.7,0.851]
[1754224976094,3.00986959,3487.8,3487.7,1.4052]
[1754224980200,1.49156959,3487.8,3487.7,1.4052]
[1754224980505,1.96426959,3487.8,3487.7,1.4052]
[1754224980703,2.106,3488.3,3488.2,0.5542]
[1754224980896,3.22744549,3488.3,3488.2,1.4052]
[1754224981095,3.01005969,3488.3,3488.2,1.4052]
[1754224982303,3.2078,3488.9,3488.3,0.57338]
[1754224982499,5.3138,3488.9,3488.8,0.9755]
[1754224982905,5.3138,3488.9,3488.8,0.5542]
[1754224983109,5.3138,3488.9,3488.8,0.2703]
[1754224984408,5.3138,3488.9,3488.8,0.9755]
[1754224984607,5.3138,3488.9,3488.8,0.5542]
[1754224984808,5.3138,3488.9,3488.8,1.4052]
[1754224985109,0.3132,3488.9,3488.8,0.9839]
[1754224985301,2.106,3488.9,3488.8,1.4052]
[1754224988807,1.4385,3488.9,3488.8,4.613]
[1754224989010,0.7814,3489.4,3489.1,0.57324]
[1754224989206,1.2403,3489.4,3489.3,1.4052]
[1754224989804,2.106,3489.4,3489.3,1.4052]
[1754224990205,0.5387,3489.5,3489.4,0.5542]
[1754224990405,2.106,3489.5,3489.4,0.5542]
[1754224990607,1.3201,3489.4,3489.3,19.616]
[1754224990807,1.7928,3489.4,3489.3,19.616]
[1754224991005,2.106,3489.4,3489.3,19.8863]
[1754224991215,2.106,3489.4,3489.3,20.7373]
[1754224991514,2.106,3489.4,3489.3,21.0212]
[1754224991814,1.4534,3489.4,3489.3,21.0212]
[1754224992016,3.2078,3489.7,3489.6,0.5542]
[1754224992311,3.2078,3489.7,3489.6,0.2703]
[1754224992610,0.8519,3489.6,3489.5,1.4052]
[1754224993008,0.5877,3489.6,3489.5,1.4052]
[1754224993204,1.8519,3490.0,3489.9,0.5542]
[1754224993503,1.8519,3490.0,3489.3,23.39701]
[1754224993504,3.106,3490.0,3489.5,1.42418]
[1754224993712,0.862,3489.9,3489.8,0.2624]
[1754224994009,0.862,3489.9,3489.8,0.6695]
[1754224994207,1.6508,3489.9,3489.8,1.3466]
[1754224994404,2.0922,3489.9,3489.8,1.3466]
[1754224994810,2.0922,3489.9,3489.8,0.2624]
[1754224995001,2.0922,3489.9,3489.8,19.8754]
[1754224995509,2.0922,3489.9,3489.3,3.2078]
[1754224995510,0.5596,3489.4,3489.3,3.2078]
[1754224995808,2.0922,3489.4,3489.3,20.9596]
[1754224996311,2.0922,3489.4,3489.3,20.1517]
[1754224996811,1.2589,3489.4,3489.3,20.9576]
[1754224997113,0.5799,3489.4,3489.3,20.9576]
[1754224998006,1.6953,3489.6,3489.5,0.5387]
[1754224998211,1.6953,3489.6,3489.5,1.3466]
[1754224998714,2.0922,3489.6,3489.5,1.3466]
[1754225001710,2.0922,3489.6,3489.3,3.2078]
[1754225001915,1.0,3490.0,3479.7,27.6]
[1754225001916,0.862,3488.9,3488.8,3.7465]
[1754225002119,0.57319,3489.5,3489.1,0.57325]
[1754225002309,0.9565,3489.4,3489.3,1.0842]
[1754225002508,0.862,3489.4,3489.3,1.3466]
[1754225003004,2.0922,3489.4,3489.3,1.3466]
[1754225003203,2.0922,3489.4,3489.3,20.1467]
[1754225003408,2.0922,3489.4,3489.3,20.9546]
[1754225005817,2.0922,3489.4,3489.3,0.9458]
[1754225006018,2.0922,3489.4,3489.3,19.8704]
[1754225007114,1.57311,3490.0,3489.4,0.5732]
[1754225007320,1.0,3490.0,3489.9,1.3466]
[1754225007521,1.89695273,3490.0,3489.9,1.3466]
[1754225007709,2.19935273,3490.0,3489.9,1.3466]
[1754225007914,3.0922,3490.0,3489.9,1.3466]
[1754225008314,1.0,3490.0,3489.9,1.3466]
[1754225008618,1.53834593,3491.0,3489.9,1.3466]
[1754225008619,5.3,3490.9,3490.8,0.2624]
[1754225008919,6.19717554,3490.9,3490.8,0.2624]
[1754225009318,5.3,3490.9,3490.8,0.2624]
[1754225010319,2.0922,3490.9,3490.8,0.2624]
[1754225011215,2.0922,3490.9,3490.8,0.5759]
[1754225011721,1.3733,3491.0,3490.9,0.83535]
[1754225011927,1.6953,3491.1,3491.0,0.2624]
[1754225012221,0.2775,3491.2,3491.1,0.83532]
[1754225012416,0.3919,3491.2,3491.1,4.35662]
[1754225012814,0.3969,3491.4,3491.1,4.04312]
[1754225013014,3.8822,3491.8,3491.7,0.2624]
[1754225013218,5.80419904,3491.8,3491.7,0.2624]
[1754225013417,4.4667,3491.8,3491.7,0.2624]
[1754225013714,3.5997,3491.8,3491.7,0.5759]
[1754225013921,1.2302,3492.1,3491.8,0.57281]
[1754225014128,3.2078,3492.3,3491.6,19.604]
[1754225014129,3.8868,3492.3,3492.2,0.2624]
[1754225014419,3.8868,3492.3,3492.0,0.3135]
[1754225014420,1.7003,3492.1,3492.0,19.8634]
[1754225014719,3.2078,3492.8,3492.3,0.57272]
[1754225015021,1.75722158,3492.7,3492.0,3.5213]
[1754225015222,0.862,3492.2,3492.1,19.8794]
[1754225015418,0.862,3492.2,3492.1,0.2624]
[1754225015622,2.0922,3492.2,3492.1,19.8794]
[1754225015816,2.0922,3492.2,3492.1,19.623]